fUST/lending_fUST_20241014
["ID","MTS","AMOUNT","RATE_DAILY","PERIOD"]
[340231352,1728882640115,-151.0,0.00024812,7]
[340231353,1728882640124,-151.0,0.00024812,7]
[340231355,1728882640134,-151.0,0.00024812,7]
[340231357,1728882640144,-555.02191,0.00024812,2]
[340231359,1728882640153,-156.05419697,0.00024821,2]
[340231360,1728882640162,-158.534743,0.00024834,2]
[340231362,1728882640172,-51423.2904925,0.00024911,3]
[340231364,1728882640181,-18165.7766846,0.00024911,3]
[340231366,1728882640191,-5190.22190988,0.00024921,3]
[340231368,1728882640201,-151.0,0.00024921,7]
[340231370,1728882640211,-151.0,0.00024921,7]
[340231371,1728882640221,-151.0,0.00024921,7]
[340231372,1728882640230,-183.509009,0.00024921,7]
[340231373,1728882640240,-151.0,0.00024921,7]
[340231374,1728882640250,-151.0,0.00024921,7]
[340231375,1728882640259,-151.0,0.00024921,7]
[340231376,1728882640268,-151.0,0.00024921,7]
[340231377,1728882640279,-151.0,0.00024921,7]
[340231378,1728882640288,-151.0,0.00024921,7]
[340231379,1728882640297,-151.0,0.00024921,7]
[340231380,1728882640306,-151.0,0.00024921,7]
[340231381,1728882640315,-151.0,0.00024921,2]
[340231382,1728882640324,-151.0,0.00024921,7]
[340231383,1728882640334,-151.0,0.00024921,7]
[340231384,1728882640343,-151.0,0.00024921,7]
[340231385,1728882640353,-151.0,0.00024921,7]
[340231386,1728882640363,-153.644087,0.00024921,7]
[340231387,1728882640371,-223.310518,0.00024921,7]
[340231388,1728882640381,-151.0,0.00024921,7]
[340231389,1728882640390,-151.0,0.00024921,7]
[340231390,1728882640400,-151.0,0.00024921,7]
[340231391,1728882640409,-151.0,0.00024921,7]
[340231392,1728882640419,-239.527841,0.00024921,7]
[340231393,1728882640429,-151.0,0.00024921,7]
[340231394,1728882640438,-239.527841,0.00024921,7]
[340231395,1728882640447,-151.0,0.00024921,7]
[340231396,1728882640456,-264.740373,0.00024921,7]
[340231397,1728882640466,-264.740373,0.00024921,7]
[340231398,1728882640475,-151.0,0.00024921,7]
[340231399,1728882640484,-151.0,0.00024921,7]
[340231400,1728882640494,-151.0,0.00024921,7]
[340231401,1728882640503,-151.0,0.00024921,7]
[340231402,1728882640513,-151.0,0.00024921,7]
[340231403,1728882640522,-151.0,0.00024921,3]
[340231404,1728882640533,-151.0,0.00024921,3]
[340231405,1728882640543,-151.0,0.00024921,7]
[340231406,1728882640552,-549.43,0.00024931,2]
[340231407,1728882640561,-500.0,0.00024931,2]
[340231408,1728882640570,-510.35959459,0.00024931,2]
[340231409,1728882640579,-500.0,0.00024931,2]
[340231410,1728882640656,-502.71400905,0.00024931,2]
[340231411,1728882640665,-500.0,0.00024931,2]
[340231412,1728882640675,-500.0,0.00024931,2]
[340231413,1728882640684,-500.0,0.00024931,2]
[340231414,1728882640693,-500.0,0.00024931,2]
[340231415,1728882640702,-500.0,0.00024931,2]
[340231416,1728882640713,-500.0,0.00024931,2]
[340231417,1728882640723,-500.0,0.00024931,2]
[340231418,1728882640733,-617.55490076,0.00024931,2]
[340231419,1728882640742,-500.0,0.00024931,2]
[340231420,1728882640751,-500.0,0.00024931,2]
[340231421,1728882640764,-519.53521539,0.00024931,2]
[340231422,1728882640774,-752.70763978,0.00024931,2]
[340231423,1728882640786,-500.0,0.00024931,2]
[340231424,1728882640796,-500.0,0.00024931,2]
[340231425,1728882640805,-500.0,0.00024931,2]
[340231426,1728882640814,-845.94,0.00024931,2]
[340231427,1728882640824,-500.0,0.00024931,2]
[340231428,1728882640833,-500.45381427,0.00024931,2]
[340231429,1728882640843,-627.97372355,0.00024931,2]
[340231430,1728882640852,-500.0,0.00024931,2]
[340231431,1728882640861,-508.48497016,0.00024931,2]
[340231432,1728882640870,-2000.0,0.00024931,2]
[340231433,1728882640880,-500.0,0.00024931,2]
[340231434,1728882640889,-500.0,0.00024931,2]
[340231435,1728882640898,-500.0,0.00024931,2]
[340231436,1728882640907,-1119.01,0.00024931,2]
[340231437,1728882640916,-500.0,0.00024931,2]
[340231438,1728882640926,-7789.28,0.00024931,2]
[340231439,1728882640935,-503.07863179,0.00024931,2]
[340231440,1728882640945,-500.0,0.00024931,2]
[340231441,1728882640954,-503.62579735,0.00024931,2]
[340231442,1728882640963,-500.0,0.00024931,2]
[340231443,1728882640973,-500.0,0.00024931,2]
[340231444,1728882640982,-2009.32,0.00024931,2]
[340231445,1728882640992,-500.0,0.00024931,2]
[340231446,1728882641001,-500.0,0.00024931,2]
[340231447,1728882641010,-500.0,0.00024931,2]
[340231448,1728882641019,-500.0,0.00024931,2]
[340231449,1728882641029,-500.0,0.00024931,2]
[340231450,1728882641038,-500.0,0.00024931,2]
[340231451,1728882641049,-33547.71,0.00024931,2]
[340231452,1728882641058,-500.0,0.00024931,2]
[340231453,1728882641067,-500.0,0.00024931,2]
[340231454,1728882641077,-207.68312,0.00024931,7]
[340231455,1728882641087,-3116.88,0.00024931,2]
[340231456,1728882641096,-151.0,0.00024931,7]
[340231457,1728882641105,-345.69,0.00024931,2]
[340231458,1728882641115,-967.07,0.00024931,2]
[340231459,1728882641124,-151.0,0.00024931,7]
[340231460,1728882641134,-235.219078,0.00024931,7]
[340231461,1728882641143,-151.0,0.00024931,7]
[340231462,1728882641152,-3229.37,0.00024931,2]
[340231463,1728882641162,-500.0,0.00024931,2]
[340231464,1728882641171,-151.0,0.00024931,7]
[340231465,1728882641180,-151.0,0.00024931,7]
[340231466,1728882641190,-151.0,0.00024931,7]
[340231467,1728882641199,-151.0,0.00024931,7]
[340231468,1728882641209,-500.0,0.00024931,2]
[340231469,1728882641218,-151.0,0.00024931,7]
[340231470,1728882641227,-500.0,0.00024931,2]
[340231471,1728882641237,-151.0,0.00024931,7]
[340231472,1728882641246,-151.0,0.00024931,7]
[340231473,1728882641256,-151.0,0.00024931,7]
[340231474,1728882641266,-1500.32,0.00024931,2]
[340231475,1728882641275,-151.0,0.00024931,7]
[340231476,1728882641286,-504.89448987,0.00024931,2]
[340231477,1728882641296,-520.26,0.00024931,2]
[340231478,1728882641305,-151.0,0.00024931,7]
[340231479,1728882641315,-500.0,0.00024973,2]
[340231480,1728882641324,-469.22573348,0.00024973,2]
[340231481,1728882641334,-408.757136,0.00025,2]
[340231482,1728882641344,-2344.32,0.00025,14]
[340231483,1728882641354,-151.0,0.00025,7]
[340231484,1728882641363,-151.0,0.00025,7]
[340231485,1728882641372,-162.177276,0.00025,7]
[340231486,1728882641381,-1775.58207307,0.00025073,2]
[340231487,1728882641391,-366.25097343,0.00025089,2]
[340231488,1728882641401,-150.112234,0.000251,10]
[340231489,1728882641410,-167.435819,0.000251,10]
[340231490,1728882641419,-500.0,0.00025173,2]
[340231491,1728882641428,-502.33255087,0.00025173,2]
[340231492,1728882641438,-500.0,0.00025173,2]
[340231493,1728882641447,-500.0,0.00025173,2]
[340231494,1728882641456,-501.56160497,0.00025173,2]
[340231495,1728882641466,-500.0,0.00025173,2]
[340231496,1728882641475,-501.55580678,0.00025173,2]
[340231497,1728882641485,-500.0,0.00025173,2]
[340231498,1728882641495,-500.99412882,0.00025173,2]
[340231499,1728882641504,-500.0,0.00025173,2]
[340231500,1728882641513,-500.0,0.00025173,2]
[340231501,1728882641522,-151.0,0.00025173,7]
[340231502,1728882641533,-152.858791,0.00025173,7]
[340231503,1728882641542,-151.0,0.00025173,7]
[340231504,1728882641551,-151.0,0.00025173,7]
[340231505,1728882641561,-236.418768,0.00025173,7]
[340231506,1728882641570,-151.0,0.00025173,7]
[340231507,1728882641579,-151.0,0.00025173,7]
[340231508,1728882641588,-151.0,0.00025173,7]
[340231509,1728882641597,-151.0,0.00025173,7]
[340231510,1728882641607,-151.0,0.00025173,7]
[340231511,1728882641616,-151.0,0.00025173,7]
[340231512,1728882641625,-151.0,0.00025173,2]
[340231513,1728882641635,-272.630068,0.00025173,7]
[340231514,1728882641644,-151.0,0.00025173,7]
[340231515,1728882641653,-151.0,0.00025173,7]
[340231516,1728882641663,-151.0,0.00025173,7]
[340231517,1728882641673,-151.0,0.00025173,7]
[340231518,1728882641683,-151.0,0.00025173,7]
[340231519,1728882641692,-151.0,0.00025173,7]
[340231520,1728882641701,-151.0,0.00025173,7]
[340231521,1728882641712,-239.527841,0.00025173,7]
[340231522,1728882641722,-151.0,0.00025173,7]
[340231523,1728882641731,-239.527841,0.00025173,7]
[340231524,1728882641741,-151.0,0.00025173,7]
[340231525,1728882641750,-264.740373,0.00025173,7]
[340231526,1728882641759,-264.740373,0.00025173,7]
[340231527,1728882641767,-155.60901,0.00025173,7]
[340231528,1728882641777,-151.0,0.00025173,7]
[340231529,1728882641787,-151.0,0.00025173,7]
[340231530,1728882641796,-151.0,0.00025173,7]
[340231531,1728882641806,-151.0,0.00025173,7]
[340231532,1728882641815,-151.0,0.00025173,3]
[340231533,1728882641824,-151.0,0.00025173,3]
[340231534,1728882641834,-151.0,0.00025173,7]
[340231535,1728882641843,-245.017774,0.00025173,7]
[340231536,1728882641854,-168.490775,0.00025173,7]
[340231537,1728882641864,-151.0,0.00025173,7]
[340231538,1728882641873,-151.0,0.00025173,7]
[340231539,1728882641883,-285.390694,0.00025173,7]
[340231540,1728882641893,-10380.4438198,0.00025185,3]
[340231541,1728882641902,-3461.82936287,0.00025195,3]
[340231542,1728882642108,-500.0,0.00024673,2]
[340231543,1728882642118,-2292.83,0.00024931,2]
[340231544,1728882642128,-1728.39254701,0.00025195,3]
[340231545,1728882642137,-151.0,0.00025195,7]
[340231546,1728882642147,-151.0,0.00025195,7]
[340231547,1728882642156,-151.0,0.00025195,7]
[340231548,1728882642167,-151.0,0.00025195,7]
[340231549,1728882642176,-151.0,0.00025195,7]
[340231550,1728882642185,-151.0,0.00025195,7]
[340231551,1728882642195,-151.0,0.00025195,7]
[340231552,1728882642204,-267.482828,0.00025195,2]
[340231553,1728882642213,-151.0,0.00025195,7]
[340231554,1728882642222,-151.0,0.00025195,7]
[340231555,1728882642231,-151.0,0.00025195,7]
[340231556,1728882642241,-151.0,0.00025195,7]
[340231557,1728882642250,-151.0,0.00025195,7]
[340231558,1728882642332,-178.034782,0.00025195,7]
[340231559,1728882642343,-151.0,0.00025195,7]
[340231560,1728882642352,-239.527841,0.00025195,7]
[340231561,1728882642361,-151.0,0.00025195,7]
[340231562,1728882642371,-239.527841,0.00025195,7]
[340231563,1728882642381,-264.740373,0.00025195,7]
[340231564,1728882642390,-264.740373,0.00025195,7]
[340231565,1728882642399,-153.520903,0.00025195,7]
[340231566,1728882642409,-259.19413,0.00025195,7]
[340231567,1728882642418,-151.0,0.00025195,7]
[340231568,1728882642428,-151.0,0.00025195,7]
[340231569,1728882642437,-151.0,0.00025195,3]
[340231570,1728882642447,-151.0,0.00025195,3]
[340231571,1728882642456,-150.112233,0.000252,7]
[340231572,1728882642465,-549.43,0.00025205,2]
[340231573,1728882642475,-500.0,0.00025205,2]
[340231574,1728882642484,-500.0,0.00025205,2]
[340231575,1728882642493,-260.75456374,0.00025205,2]
[340231576,1728882642502,-151.0,0.00025205,7]
[340231577,1728882642511,-500.0,0.00025205,2]
[340231578,1728882642520,-508.71361774,0.00025205,2]
[340231579,1728882642530,-500.0,0.00025205,2]
[340231580,1728882642543,-500.0,0.00025205,2]
[340231581,1728882642555,-151.0,0.00025205,7]
[340231582,1728882642564,-500.0,0.00025205,2]
[340231583,1728882642573,-151.0,0.00025205,7]
[340231584,1728882642583,-151.0,0.00025205,7]
[340231585,1728882642592,-151.0,0.00025205,7]
[340231586,1728882642602,-500.0,0.00025205,2]
[340231587,1728882642611,-151.0,0.00025205,7]
[340231588,1728882642620,-525.07907926,0.00025205,2]
[340231589,1728882642630,-501.77177395,0.00025205,2]
[340231590,1728882642639,-500.0,0.00025205,2]
[340231591,1728882642649,-845.94,0.00025205,2]
[340231592,1728882642659,-151.0,0.00025205,7]
[340231593,1728882642668,-151.0,0.00025205,7]
[340231594,1728882642677,-205.46260905,0.00025205,7]
[340231595,1728882642687,-151.0,0.00025205,7]
[340231596,1728882642697,-580.68629692,0.00025205,2]
[340231597,1728882642706,-2000.0,0.00025205,2]
[340231598,1728882642720,-500.0,0.00025205,2]
[340231599,1728882642729,-254.264818,0.00025205,7]
[340231600,1728882642739,-500.0,0.00025205,2]
[340231601,1728882642748,-500.0,0.00025205,2]
[340231602,1728882642758,-1119.01,0.00025205,2]
[340231603,1728882642768,-151.0,0.00025205,7]
[340231604,1728882642778,-504.68835816,0.00025205,2]
[340231605,1728882642791,-151.0,0.00025205,7]
[340231606,1728882642801,-151.0,0.00025205,7]
[340231607,1728882642810,-289.158582,0.00025205,7]
[340231608,1728882642820,-7789.28,0.00025205,2]
[340231609,1728882642829,-151.0,0.00025205,7]
[340231610,1728882642839,-151.0,0.00025205,7]
[340231611,1728882642849,-241.04,0.00025205,2]
[340231612,1728882642858,-151.0,0.00025205,7]
[340231613,1728882642868,-151.0,0.00025205,7]
[340231614,1728882642878,-500.0,0.00025205,2]
[340231615,1728882642887,-239.527841,0.00025205,7]
[340231616,1728882642898,-500.37103668,0.00025205,2]
[340231617,1728882642907,-2009.32,0.00025205,2]
[340231618,1728882642917,-239.527841,0.00025205,7]
[340231619,1728882642927,-500.0,0.00025205,2]
[340231620,1728882642937,-500.0,0.00025205,2]
[340231621,1728882642947,-264.740373,0.00025205,7]
[340231622,1728882642955,-264.740373,0.00025205,7]
[340231623,1728882642965,-500.0,0.00025205,2]
[340231624,1728882642974,-500.0,0.00025205,2]
[340231625,1728882642983,-500.0,0.00025205,2]
[340231626,1728882642992,-500.0,0.00025205,2]
[340231627,1728882643002,-33547.71,0.00025205,2]
[340231628,1728882643011,-614.43929088,0.00025205,2]
[340231629,1728882643020,-151.0,0.00025205,7]
[340231630,1728882643029,-500.0,0.00025205,2]
[340231631,1728882643044,-151.0,0.00025205,7]
[340231632,1728882643054,-3116.88,0.00025205,2]
[340231633,1728882643065,-151.0,0.00025205,3]
[340231634,1728882643076,-967.07,0.00025205,2]
[340231635,1728882643085,-185.624768,0.00025205,3]
[340231636,1728882643095,-151.0,0.00025205,7]
[340231637,1728882643104,-3229.37,0.00025205,2]
[340231638,1728882643114,-320.56551636,0.00025205,2]
[340231639,1728882643124,-151.0,0.00025205,7]
[340231640,1728882643134,-500.0,0.00025205,2]
[340231641,1728882643143,-245.331185,0.00025205,7]
[340231642,1728882643153,-500.0,0.00025205,2]
[340231643,1728882643163,-1500.32,0.00025205,2]
[340231644,1728882643172,-151.0,0.00025205,7]
[340231645,1728882643182,-520.26,0.00025205,2]
[340231646,1728882643192,-2292.83,0.00025205,2]
[340231647,1728882643202,-500.0,0.00025273,2]
[340231648,1728882643211,-500.0,0.00025273,2]
[340231649,1728882643221,-150.1511019,0.00025273,2]
[340231650,1728882643231,-500.29325796,0.00025273,2]
[340231651,1728882643241,-500.0,0.00025273,2]
[340231652,1728882643250,-502.76503536,0.00025273,2]
[340231653,1728882643260,-500.0,0.00025273,2]
[340231654,1728882643269,-500.0,0.00025273,2]
[340231655,1728882643279,-500.30125347,0.00025273,2]
[340231656,1728882643290,-500.0,0.00025273,2]
[340231657,1728882643300,-179.340288,0.0002529,7]
[340231658,1728882643310,-156.436306,0.0002529,7]
[340231659,1728882643320,-150.112233,0.000253,5]
[340231660,1728882643329,-151.0,0.0002539,7]
[340231661,1728882643339,-151.0,0.0002539,7]
[340231662,1728882643348,-151.0,0.0002539,7]
[340231663,1728882643358,-151.0,0.0002539,7]
[340231664,1728882643367,-196.326238,0.0002539,7]
[340231665,1728882643377,-151.0,0.0002539,7]
[340231666,1728882643386,-151.0,0.0002539,7]
[340231667,1728882643395,-151.0,0.0002539,7]
[340231668,1728882643406,-239.527841,0.0002539,7]
[340231669,1728882643416,-239.527841,0.0002539,7]
[340231670,1728882643426,-264.740373,0.0002539,7]
[340231671,1728882643435,-264.740373,0.0002539,7]
[340231672,1728882643444,-151.0,0.0002539,7]
[340231673,1728882643453,-151.0,0.0002539,7]
[340231674,1728882643462,-151.0,0.0002539,3]
[340231675,1728882643471,-150.112233,0.000254,6]
[340231676,1728882643481,-150.112233,0.000254,8]
[340231677,1728882643490,-200.0,0.0002547,12]
[340231678,1728882643498,-549.43,0.00025479,2]
[340231679,1728882643508,-500.0,0.00025479,2]
[340231680,1728882643517,-500.0,0.00025479,2]
[340231681,1728882643526,-154.162139,0.00025479,7]
[340231682,1728882643537,-276.22366406,0.00025479,2]
[340231684,1728882643546,-500.0,0.00025479,2]
[340231687,1728882643556,-500.0,0.00025479,2]
[340231689,1728882643566,-151.0,0.00025479,7]
[340231691,1728882643575,-500.0,0.00025479,2]
[340231693,1728882643585,-151.0,0.00025479,7]
[340231694,1728882643594,-151.0,0.00025479,7]
[340231695,1728882643604,-151.0,0.00025479,7]
[340231696,1728882643614,-500.0,0.00025479,2]
[340231697,1728882643623,-845.94,0.00025479,2]
[340231698,1728882643632,-151.0,0.00025479,7]
[340231699,1728882643641,-2000.0,0.00025479,2]
[340231700,1728882643651,-500.0,0.00025479,2]
[340231701,1728882643660,-500.0,0.00025479,2]
[340231702,1728882643670,-310.44678203,0.00025479,2]
[340231703,1728882643680,-1119.01,0.00025479,2]
[340231704,1728882643689,-151.0,0.00025479,7]
[340231705,1728882643699,-151.0,0.00025479,7]
[340231706,1728882643710,-151.0,0.00025479,7]
[340231707,1728882643721,-7789.28,0.00025479,2]
[340231708,1728882643730,-151.0,0.00025479,7]
[340231709,1728882643739,-151.0,0.00025479,7]
[340231710,1728882643749,-261.406602,0.00025479,7]
[340231711,1728882643759,-500.0,0.00025479,2]
[340231712,1728882643769,-239.527841,0.00025479,7]
[340231713,1728882643779,-2009.32,0.00025479,2]
[340231714,1728882643790,-239.527841,0.00025479,7]
[340231715,1728882643800,-561.3646478,0.00025479,2]
[340231716,1728882643809,-500.0,0.00025479,2]
[340231718,1728882643819,-264.740373,0.00025479,7]
[340231720,1728882643828,-500.0,0.00025479,2]
[340231722,1728882643838,-264.740373,0.00025479,7]
[340231724,1728882643847,-500.0,0.00025479,2]
[340231725,1728882643857,-500.0,0.00025479,2]
[340231726,1728882643867,-500.0,0.00025479,2]
[340231727,1728882643876,-33547.71,0.00025479,2]
[340231728,1728882643886,-151.0,0.00025479,7]
[340231729,1728882643895,-500.0,0.00025479,2]
[340231730,1728882643905,-274.049264,0.00025479,7]
[340231731,1728882643914,-3116.88,0.00025479,2]
[340231733,1728882643986,-151.0,0.00025479,3]
[340231734,1728882643996,-967.07,0.00025479,2]
[340231736,1728882644005,-151.0,0.00025479,7]
[340231737,1728882644014,-3229.37,0.00025479,2]
[340231738,1728882644025,-151.0,0.00025479,7]
[340231739,1728882644036,-500.0,0.00025479,2]
[340231740,1728882644046,-500.0,0.00025479,2]
[340231741,1728882644056,-1500.32,0.00025479,2]
[340231742,1728882644067,-151.0,0.00025479,7]
[340231743,1728882644076,-520.26,0.00025479,2]
[340231744,1728882644085,-2292.83,0.00025479,2]
[340231745,1728882644095,-150.8655135,0.00025479,2]
[340231746,1728882644105,-150.112233,0.000255,8]
[340231747,1728882644115,-150.112233,0.000255,8]
[340231748,1728882644125,-150.112239,0.000255,6]
[340231749,1728882644135,-150.112233,0.000255,6]
[340231750,1728882644145,-832.93818469,0.00025542,2]
[340231751,1728882644155,-173.11237323,0.00025553,7]
[340231752,1728882644164,-150.112233,0.000256,5]
[340231753,1728882644175,-150.112233,0.000256,5]
[340231754,1728882644184,-150.112233,0.000256,5]
[340231755,1728882644194,-150.112233,0.000256,9]
[340231756,1728882644203,-3421.01674978,0.00025647,30]
[340231757,1728882644213,-182.460235,0.00025649,2]
[340231758,1728882644222,-205.716059,0.00025649,2]
[340231759,1728882644232,-151.0,0.00025653,7]
[340231760,1728882644242,-151.0,0.00025653,7]
[340231761,1728882644251,-596.0,0.00025687,2]
[340231762,1728882644261,-150.112233,0.000257,10]
[340231763,1728882644271,-150.112233,0.000257,8]
[340231764,1728882644283,-150.112233,0.000257,6]
[340231765,1728882644293,-549.43,0.00025753,2]
[340231766,1728882644302,-500.0,0.00025753,2]
[340231767,1728882644312,-500.0,0.00025753,2]
[340231768,1728882644321,-500.0,0.00025753,2]
[340231769,1728882644331,-500.0,0.00025753,2]
[340231770,1728882644340,-151.0,0.00025753,7]
[340231771,1728882644350,-500.0,0.00025753,2]
[340231772,1728882644359,-151.0,0.00025753,7]
[340231773,1728882644369,-151.0,0.00025753,7]
[340231774,1728882644378,-519.63907604,0.00025753,2]
[340231775,1728882644387,-845.94,0.00025753,2]
[340231776,1728882644397,-151.0,0.00025753,7]
[340231777,1728882644407,-2000.0,0.00025753,2]
[340231778,1728882644417,-500.0,0.00025753,2]
[340231779,1728882644426,-500.0,0.00025753,2]
[340231780,1728882644435,-1119.01,0.00025753,2]
[340231781,1728882644444,-166.1,0.00025753,7]
[340231782,1728882644453,-151.0,0.00025753,7]
[340231783,1728882644463,-151.0,0.00025753,7]
[340231784,1728882644472,-7789.28,0.00025753,2]
[340231785,1728882644483,-500.0,0.00025753,2]
[340231786,1728882644492,-2009.32,0.00025753,2]
[340231787,1728882644503,-506.66931171,0.00025753,2]
[340231788,1728882644513,-264.740373,0.00025753,7]
[340231789,1728882644522,-264.740373,0.00025753,7]
[340231790,1728882644532,-500.0,0.00025753,2]
[340231791,1728882644542,-181.25403163,0.00025753,2]
[340231792,1728882644551,-500.0,0.00025753,2]
[340231793,1728882644561,-296.37128676,0.00025753,2]
[340231794,1728882644571,-33547.71,0.00025753,2]
[340231795,1728882644581,-151.0,0.00025753,7]
[340231796,1728882644590,-500.0,0.00025753,2]
[340231797,1728882644600,-3116.88,0.00025753,2]
[340231798,1728882644610,-151.0,0.00025753,3]
[340231799,1728882644619,-967.07,0.00025753,2]
[340231800,1728882644628,-151.0,0.00025753,7]
[340231801,1728882644638,-3229.37,0.00025753,2]
[340231802,1728882644648,-151.0,0.00025753,7]
[340231803,1728882644658,-611.21888889,0.00025753,2]
[340231804,1728882644668,-500.0,0.00025753,2]
[340231805,1728882644677,-1500.32,0.00025753,2]
[340231806,1728882644687,-520.26,0.00025753,2]
[340231807,1728882644696,-2292.83,0.00025753,2]
[340231808,1728882644706,-500.0,0.00025773,2]
[340231809,1728882644720,-380.30358884,0.00025773,2]
[340231810,1728882644729,-150.0,0.00025773,2]
[340231811,1728882644739,-88102.58109585,0.000258,7]
[340231812,1728882644749,-23751.78112397,0.000258,7]
[340231813,1728882644759,-336443.6030546,0.000258,2]
[340231814,1728882644997,-500.0,0.00024657,2]
[340231815,1728882645008,-562.64519503,0.00024657,2]
[340231816,1728882645017,-151.0,0.00024776,5]
[340231817,1728882645028,-813.93,0.00024901,3]
[340231818,1728882645039,-500.0,0.00024931,2]
[340231819,1728882645048,-151.0,0.00024931,5]
[340231820,1728882645058,-151.0,0.00025,5]
[340231821,1728882645068,-2461.69,0.00025163,10]
[340231822,1728882645077,-151.0,0.00025205,5]
[340231823,1728882645087,-56490.91872497,0.000258,2]
[340231887,1728882790449,5000.0,0.00021972,2]
[340231888,1728882870665,639.626647,0.00023836,2]
[340231889,1728882871510,164.039325,0.00023804,2]
[340231890,1728882871927,164.039325,0.00023942,2]
[340232002,1728882878480,190.9054646,0.00023546,2]
[340232036,1728883180208,6298.2409745,0.0001,2]
[340232105,1728883388040,164.039325,0.00023749,2]
[340232106,1728883388250,164.039325,0.00023926,2]
[340232109,1728883463213,351.561886,0.00023836,2]
[340232122,1728883579187,173.726534,0.00023322,2]
[340232306,1728883843191,-164.039325,0.00024103,2]
[340232307,1728883843201,-164.039325,0.00024279,2]
[340232309,1728883843210,-164.039325,0.00024456,2]
[340232311,1728883843225,-1982.19362401,0.000245,15]
[340232312,1728883843234,-1000.0,0.00024536,2]
[340232313,1728883843243,-154.94281802,0.00024557,2]
[340232314,1728883843252,-2389.80980581,0.00024557,2]
[340232315,1728883843264,-346.88595439,0.00024573,2]
[340232316,1728883843273,-470.41961642,0.00024589,2]
[340232317,1728883843282,-164.039325,0.00024633,2]
[340232318,1728883843292,-300.0,0.00024642,2]
[340232319,1728883843301,-300.0,0.00024642,2]
[340232320,1728883843310,-1507.37731891,0.00024643,2]
[340232321,1728883843330,-191.07,0.00024647,2]
[340232322,1728883843340,-473.89,0.00024647,3]
[340232323,1728883843350,-236.95,0.00024647,3]
[340232324,1728883843359,-710.85,0.00024647,3]
[340232325,1728883843368,-947.79,0.00024648,3]
[340232326,1728883843377,-888.50087356,0.00024657,2]
[340232327,1728883843387,-500.0,0.00024657,2]
[340232328,1728883843396,-503.75075055,0.00024657,2]
[340232329,1728883843405,-502.33670816,0.00024657,2]
[340232330,1728883843415,-500.0,0.00024657,2]
[340232331,1728883843424,-506.55161376,0.00024657,2]
[340232332,1728883843433,-514.29773323,0.00024657,2]
[340232333,1728883843443,-317.13025266,0.00024657,2]
[340232334,1728883843452,-452.7225793,0.00024657,2]
[340232335,1728883843462,-500.0,0.00024657,2]
[340232336,1728883843471,-500.0,0.00024657,2]
[340232337,1728883843480,-500.0,0.00024657,2]
[340232338,1728883843489,-207.23614261,0.00024657,2]
[340232339,1728883843498,-500.0,0.00024657,2]
[340232340,1728883843510,-500.0,0.00024657,2]
[340232341,1728883843519,-1500.0,0.00024657,2]
[340232342,1728883843528,-500.0,0.00024657,2]
[340232343,1728883843538,-400.0,0.00024657,2]
[340232344,1728883843655,-500.0,0.00024657,2]
[340232345,1728883843665,-500.0,0.00024657,2]